[Event "6. Internationales Spandauer Weihnachtsopen 2023"]
[Site "Spandau, Germany"]
[Date "2023.12.29"]
[Round "6.5"]
[White "Ziska, Stephan"]
[Black "Perestjuk, Marko"]
[Result "*"]
[TimeControl "90 min+30 sec"]
[WhiteElo "1812"]
[BlackElo "2171"]

1. e4 {[%clk 01:30:59]} c5 {[%clk 01:30:44]} {[%emt 00:00:18]} 2. c3 {[%clk
01:31:24]} {[%emt 00:00:07]} d5 {[%clk 01:30:54]} {[%emt 00:00:17]} 3. exd5
{[%clk 01:30:34]} {[%emt 00:01:21]} Qxd5 {[%clk 01:31:17]} {[%emt 00:00:06]} 4.
Nf3 {[%clk 01:30:17]} {[%emt 00:00:46]} Nf6 {[%clk 01:30:54]} {[%emt 00:00:53]}
5. d4 {[%clk 01:30:20]} {[%emt 00:00:28]} Bg4 {[%clk 01:28:55]} {[%emt
00:02:28]} 6. Be2 {[%clk 01:30:15]} {[%emt 00:00:39]} e6 {[%clk 01:26:19]}
{[%emt 00:03:01]} 7. O-O {[%clk 01:29:31]} {[%emt 00:01:15]} Nc6 {[%clk
01:25:36]} {[%emt 00:01:14]} 8. Be3 {[%clk 01:23:31]} {[%emt 00:06:29]} cxd4
{[%clk 01:23:20]} {[%emt 00:02:46]} 9. cxd4 {[%clk 01:22:27]} {[%emt 00:01:35]}
Be7 {[%clk 01:22:46]} {[%emt 00:02:26]} 10. Nc3 {[%clk 01:21:25]} {[%emt
00:00:10]} Qd6 {[%clk 01:23:04]} {[%emt 00:00:13]} 11. Nb5 {[%clk 01:13:43]}
{[%emt 00:08:10]} Qd8 {[%clk 01:20:06]} {[%emt 00:03:28]} 12. Ne5 {[%clk
01:08:44]} {[%emt 00:05:30]} Bxe2 {[%clk 01:19:17]} {[%emt 00:01:19]} 13. Qxe2
{[%clk 01:06:58]} {[%emt 00:02:15]} Nb4 {[%clk 01:19:33]} {[%emt 00:00:15]} 14.
d5 {[%clk 01:00:18]} {[%emt 00:07:10]} Nbxd5 {[%clk 00:39:27]} {[%emt
00:40:36]} 15. Bxa7 {[%clk 00:49:25]} {[%emt 00:11:27]} b6 {[%clk 00:34:23]}
{[%emt 00:06:55]} 16. Rfd1 {[%clk 00:42:40]} {[%emt 00:05:55]} O-O {[%clk
00:33:50]} {[%emt 00:01:00]} 17. Rac1 {[%clk 00:33:40]} {[%emt 00:09:27]} Bd6
{[%clk 00:30:23]} {[%emt 00:03:57]} 18. Bxb6 {[%clk 00:20:11]} {[%emt
00:13:59]} Qxb6 {[%clk 00:15:58]} {[%emt 00:14:54]} 19. Rc6 {[%clk 00:19:55]}
{[%emt 00:00:48]} Qa5 {[%clk 00:12:47]} {[%emt 00:03:44]} 20. Nxd6 {[%clk
00:18:26]} {[%emt 00:01:55]} Nf4 {[%clk 00:12:35]} {[%emt 00:00:47]} 21. Qe1
{[%clk 00:16:54]} {[%emt 00:02:06]} Qxa2 {[%clk 00:12:23]} {[%emt 00:00:38]} 22.
g3 {[%clk 00:15:35]} {[%emt 00:01:44]} Ng6 {[%clk 00:10:50]} {[%emt 00:02:18]}
23. Nxg6 {[%clk 00:12:28]} {[%emt 00:03:27]} hxg6 {[%clk 00:10:20]} {[%emt
00:00:55]} 24. b4 {[%clk 00:11:09]} {[%emt 00:01:49]} Qb3 {[%clk 00:10:23]}
{[%emt 00:00:27]} 25. Rdc1 {[%clk 00:10:23]} {[%emt 00:01:16]} Rfd8 {[%clk
00:07:54]} {[%emt 00:03:00]} 26. b5 {[%clk 00:10:20]} {[%emt 00:00:36]} Qd5
{[%clk 00:07:50]} {[%emt 00:00:33]} 27. Nc8 {[%clk 00:08:00]} {[%emt 00:03:07]}
Qxb5 {[%clk 00:07:16]} {[%emt 00:00:46]} 28. R6c5 {[%clk 00:04:50]} {[%emt
00:03:38]} Qb2 {[%clk 00:05:29]} {[%emt 00:02:26]} 29. R5c2 {[%clk 00:05:05]}
{[%emt 00:00:09]} Qb7 {[%clk 00:04:05]} {[%emt 00:01:50]} 30. Rc7 {[%clk
00:05:18]} {[%emt 00:00:16]} Qf3 {[%clk 00:04:13]} {[%emt 00:00:23]} 31. R7c3
{[%clk 00:05:09]} {[%emt 00:00:38]} Qh5 {[%clk 00:03:21]} {[%emt 00:01:23]} 32.
Ne7+ {[%clk 00:05:13]} {[%emt 00:00:31]} Kf8 {[%clk 00:01:09]} {[%emt
00:02:36]} 33. Nc6 {[%clk 00:05:11]} {[%emt 00:00:36]} Rd5 {[%clk 00:00:57]}
{[%emt 00:00:38]} 34. Rc4 {[%clk 00:05:09]} {[%emt 00:00:36]} Rb5 {[%clk
00:00:33]} {[%emt 00:00:50]} 35. Rh4 {[%clk 00:04:50]} {[%emt 00:00:49]} Qg5
{[%clk 00:00:32]} {[%emt 00:00:36]} 36. Rh8+ {[%clk 00:03:29]} {[%emt
00:01:46]} Ng8 {[%clk 00:01:01]} 37. Qd1 {[%clk 00:03:07]} {[%emt 00:00:58]}
Rd5 {[%clk 00:00:57]} {[%emt 00:03:16]} 38. Qe1 {[%clk 00:03:18]} Qd2 {[%clk
00:00:35]} 39. Rxg8+ {[%clk 00:01:19]} {[%emt 00:00:53]} Kxg8 {[%clk 00:01:03]}
40. Ne7+ {[%clk 00:01:41]} {[%emt 00:00:11]} Kf8 {[%clk 00:01:08]} {[%emt
00:00:25]} 41. Nxd5 {[%clk 00:02:05]} {[%emt 00:00:06]} Qxe1+ {[%clk 00:01:20]}
{[%emt 00:00:17]} 42. Rxe1 {[%clk 00:02:29]} {[%emt 00:00:06]} exd5 {[%clk
00:01:48]} {[%emt 00:00:06]} 43. Kg2 {[%clk 00:02:41]} {[%emt 00:00:18]} Re8
{[%clk 00:01:41]} {[%emt 00:00:38]} 44. Rd1 {[%clk 00:03:01]} {[%emt 00:00:06]}
Rd8 {[%clk 00:02:05]} {[%emt 00:00:05]} 45. Kf3 {[%clk 00:03:10]} {[%emt
00:00:21]} Ke7 {[%clk 00:02:19]} {[%emt 00:00:16]} 46. Ke3 {[%clk 00:03:30]}
{[%emt 00:00:10]} g5 {[%clk 00:00:59]} {[%emt 00:01:53]} 47. Rd4 {[%clk
00:03:40]} {[%emt 00:00:21]} Ke6 {[%clk 00:01:09]} {[%emt 00:00:17]} 48. Rg4
{[%clk 00:03:30]} {[%emt 00:00:39]} Kf5 {[%clk 00:00:53]} {[%emt 00:00:45]} 49.
Rd4 {[%clk 00:03:48]} {[%emt 00:00:13]} f6 {[%clk 00:01:02]} {[%emt 00:00:30]}
50. h4 {[%clk 00:02:55]} {[%emt 00:01:17]} gxh4 {[%clk 00:01:21]} {[%emt
00:00:07]} 51. Rxh4 {[%clk 00:03:18]} {[%emt 00:00:08]} g5 {[%clk 00:00:39]}
{[%emt 00:01:16]} 52. Rd4 {[%clk 00:03:34]} {[%emt 00:00:14]} Ke5 {[%clk
00:00:49]} {[%emt 00:00:16]} 53. f4+ {[%clk 00:02:56]} {[%emt 00:01:08]} gxf4+
{[%clk 00:01:06]} {[%emt 00:00:13]} 54. Rxf4 {[%clk 00:02:58]} {[%emt
00:00:27]} Ra8 {[%clk 00:01:10]} {[%emt 00:00:31]} 55. Rb4 {[%clk 00:02:08]}
{[%emt 00:01:14]} Ra3+ {[%clk 00:01:21]} {[%emt 00:00:19]} 56. Kf2 {[%clk
00:02:33]} {[%emt 00:00:06]} d4 {[%clk 00:01:40]} {[%emt 00:00:10]} 57. Rb8
{[%clk 00:02:51]} {[%emt 00:00:17]} Ke4 {[%clk 00:00:38]} {[%emt 00:01:35]} 58.
Re8+ {[%clk 00:03:13]} Kd3 {[%clk 00:00:41]} {[%emt 00:00:27]} 59. Rf8 {[%clk
00:02:51]} {[%emt 00:00:58]} Kc2 {[%clk 00:00:37]} {[%emt 00:00:30]} 60. Rxf6
{[%clk 00:02:43]} {[%emt 00:00:36]} d3 {[%clk 00:01:00]} {[%emt 00:00:08]} 61.
Rc6+ {[%clk 00:00:36]} {[%emt 00:02:37]} Rc3 {[%clk 00:01:15]} {[%emt
00:00:27]} 62. Rd6 {[%clk 00:00:47]} {[%emt 00:00:06]} Rc8 {[%clk 00:01:28]}
{[%emt 00:00:21]} 63. Ke1 {[%clk 00:00:42]} {[%emt 00:00:31]} Re8+ {[%clk
00:01:42]} {[%emt 00:00:16]} 64. Kf2 {[%clk 00:00:56]} {[%emt 00:00:24]} d2
{[%clk 00:00:41]} {[%emt 00:01:27]} 65. Rc6+ {[%clk 00:01:09]} {[%emt
00:00:13]} Kd1 {[%clk 00:00:36]} {[%emt 00:00:37]} 66. g4 {[%clk 00:01:16]}
{[%emt 00:00:20]} Rf8+ {[%clk 00:00:40]} {[%emt 00:00:25]} 67. Kg3 {[%clk
00:00:39]} {[%emt 00:01:09]} Rd8 {[%clk 00:00:42]} {[%emt 00:00:27]} 68. g5
{[%clk 00:00:32]} {[%emt 00:00:37]} Ke2 {[%clk 00:00:49]} {[%emt 00:00:22]} 69.
Rc2 {[%clk 00:00:41]} {[%emt 00:00:21]} Ke3 {[%clk 00:00:43]} {[%emt 00:00:37]}
70. Rxd2 {[%emt 00:01:20]} Kd4 {[%emt 00:00:04]} *

[Event "6. Internationales Spandauer Weihnachtsopen 2023"]
[Site "Spandau, Germany"]
[Date "2023.12.29"]
[Round "6.6"]
[White "Tschernatsch, Johannes"]
[Black "Jankowiak, Piotr"]
[Result "1-0"]
[TimeControl "90 min+30 sec"]
[WhiteElo "2335"]
[BlackElo "2076"]

1. e4 {[%clk 01:30:26]} {[%emt 00:01:56]} e5 {[%clk 01:30:54]} 2. Nf3 {[%clk
01:30:51]} Nf6 {[%clk 01:31:15]} 3. Nxe5 {[%clk 01:31:04]} d6 {[%clk 01:31:40]}
4. Nf3 {[%clk 01:31:30]} Nxe4 {[%clk 01:32:05]} 5. d4 {[%clk 01:31:56]} d5
{[%clk 01:32:31]} {[%emt 00:00:04]} 6. Bd3 {[%clk 01:32:22]} Bd6 {[%clk
01:32:50]} 7. O-O {[%clk 01:32:45]} {[%emt 00:00:04]} O-O {[%clk 01:33:15]} 8.
Re1 {[%clk 01:32:58]} {[%emt 00:00:16]} Bf5 {[%clk 01:27:22]} {[%emt 00:06:16]}
9. Nbd2 {[%clk 01:32:37]} {[%emt 00:00:53]} Re8 {[%clk 01:25:39]} {[%emt
00:02:10]} 10. Nf1 {[%clk 01:32:06]} {[%emt 00:01:05]} c6 {[%clk 01:22:48]}
{[%emt 00:03:21]} 11. c3 {[%clk 01:31:48]} {[%emt 00:00:44]} Nd7 {[%clk
01:21:35]} {[%emt 00:01:47]} 12. Qc2 {[%clk 01:26:35]} {[%emt 00:05:44]} Bg6
{[%clk 01:16:32]} {[%emt 00:05:41]} 13. g3 {[%clk 01:19:51]} {[%emt 00:07:04]}
Qf6 {[%clk 01:10:59]} {[%emt 00:05:59]} 14. Kg2 {[%clk 01:19:15]} {[%emt
00:01:06]} Bh5 {[%clk 01:05:31]} {[%emt 00:05:59]} 15. Ng1 {[%clk 01:18:25]}
{[%emt 00:01:24]} Bg6 {[%clk 01:02:23]} {[%emt 00:03:58]} 16. Nh3 {[%clk
01:13:15]} {[%emt 00:05:16]} h6 {[%clk 00:53:20]} {[%emt 00:09:39]} 17. Nf4
{[%clk 01:04:16]} {[%emt 00:09:22]} Bxf4 {[%clk 00:46:53]} {[%emt 00:06:57]} 18.
Bxf4 {[%clk 01:04:33]} {[%emt 00:00:13]} Nd6 {[%clk 00:41:03]} {[%emt
00:06:23]} 19. Bxg6 {[%clk 01:03:49]} {[%emt 00:01:20]} fxg6 {[%clk 00:40:55]}
{[%emt 00:00:32]} 20. Qb3 {[%clk 00:58:33]} {[%emt 00:05:41]} b6 {[%clk
00:33:28]} {[%emt 00:07:58]} 21. Qa4 {[%clk 00:57:38]} {[%emt 00:01:31]} Ne4
{[%clk 00:24:59]} {[%emt 00:08:53]} 22. f3 {[%clk 00:55:18]} {[%emt 00:02:53]}
Ng5 {[%clk 00:22:17]} {[%emt 00:03:18]} 23. Bxg5 {[%clk 00:55:13]} {[%emt
00:00:26]} hxg5 {[%clk 00:21:53]} {[%emt 00:00:54]} 24. Ne3 {[%clk 00:54:36]}
{[%emt 00:01:16]} Rf8 {[%clk 00:20:09]} {[%emt 00:02:05]} 25. Rf1 {[%clk
00:54:30]} {[%emt 00:00:36]} Qd6 {[%clk 00:17:39]} {[%emt 00:02:59]} 26. Ng4
{[%clk 00:53:46]} {[%emt 00:01:15]} a5 {[%clk 00:17:27]} {[%emt 00:00:43]} 27.
Rae1 {[%clk 00:53:42]} {[%emt 00:00:40]} b5 {[%clk 00:17:31]} {[%emt 00:00:19]}
28. Qc2 {[%clk 00:53:51]} {[%emt 00:00:21]} Rf5 {[%clk 00:15:31]} {[%emt
00:02:30]} 29. Qe2 {[%clk 00:51:56]} {[%emt 00:02:33]} Kf7 {[%clk 00:15:55]} 30.
Rf2 {[%clk 00:51:39]} {[%emt 00:00:49]} a4 {[%clk 00:14:07]} {[%emt 00:02:14]}
31. Qe3 {[%clk 00:50:27]} {[%emt 00:01:42]} Rc8 {[%clk 00:10:47]} {[%emt
00:03:53]} 32. Rfe2 {[%clk 00:49:16]} {[%emt 00:01:44]} Kg8 {[%clk 00:08:00]}
{[%emt 00:03:14]} 33. Qe7 {[%clk 00:47:41]} {[%emt 00:02:10]} Qxe7 {[%clk
00:08:10]} {[%emt 00:00:12]} 34. Rxe7 {[%clk 00:48:01]} {[%emt 00:00:36]} Rf7
{[%clk 00:08:12]} {[%emt 00:00:07]} 35. Re8+ {[%clk 00:45:57]} {[%emt
00:02:33]} Rf8 {[%clk 00:08:23]} {[%emt 00:00:14]} 36. R8e6 {[%clk 00:45:41]}
{[%emt 00:00:46]} Kh7 {[%clk 00:08:05]} {[%emt 00:00:53]} 37. Rd6 {[%clk
00:38:24]} {[%emt 00:07:47]} Nf6 {[%clk 00:05:57]} {[%emt 00:02:34]} 38. Ne5
{[%clk 00:33:57]} {[%emt 00:04:56]} c5 {[%clk 00:06:10]} {[%emt 00:00:18]} 39.
dxc5 {[%clk 00:34:10]} {[%emt 00:00:25]} Rxc5 {[%clk 00:06:37]} 40. a3 {[%clk
00:28:49]} {[%emt 00:05:44]} Re8 {[%clk 00:04:46]} {[%emt 00:02:21]} 41. Kf2
{[%clk 00:28:57]} {[%emt 00:00:24]} d4 {[%clk 00:00:34]} {[%emt 00:04:45]} 42.
Nd3 {[%clk 00:25:38]} {[%emt 00:03:44]} Rxe1 {[%clk 00:00:40]} {[%emt
00:00:24]} 43. Kxe1 {[%clk 00:26:03]} {[%emt 00:00:12]} Rf5 {[%clk 00:00:34]}
{[%emt 00:00:34]} 44. Rxd4 {[%clk 00:26:11]} {[%emt 00:00:23]} Rxf3 {[%clk
00:00:57]} {[%emt 00:00:05]} 45. Ke2 {[%clk 00:26:29]} {[%emt 00:00:08]} Rf5
{[%clk 00:01:04]} {[%emt 00:00:24]} 46. c4 {[%clk 00:26:12]} {[%emt 00:00:50]}
bxc4 {[%clk 00:00:50]} {[%emt 00:00:45]} 47. Rxc4 {[%clk 00:26:33]} {[%emt
00:00:05]} Ra5 {[%clk 00:00:47]} {[%emt 00:00:40]} 48. Nc5 {[%clk 00:25:20]}
{[%emt 00:01:34]} Nd5 {[%clk 00:00:32]} {[%emt 00:00:51]} 49. Nxa4 {[%clk
00:24:56]} {[%emt 00:00:56]} Rb5 {[%clk 00:00:40]} {[%emt 00:00:18]} 50. Rc5
{[%clk 00:24:02]} {[%emt 00:01:20]} 1-0

[Event "6. Internationales Spandauer Weihnachtsopen 2023"]
[Site "Spandau, Germany"]
[Date "2023.12.30"]
[Round "7.1"]
[White "Goluch, Piotr"]
[Black "Dahl, Christoph"]
[Result "1/2-1/2"]
[TimeControl "90 min+30 sec"]
[WhiteElo "2312"]
[BlackElo "2357"]

1. d4 {[%clk 01:30:57]} {[%emt 00:00:08]} Nf6 {[%clk 01:30:51]} {[%emt
00:00:05]} 2. c4 {[%clk 01:31:23]} {[%emt 00:00:06]} e6 {[%clk 01:31:10]}
{[%emt 00:00:12]} 3. g3 {[%clk 01:31:49]} {[%emt 00:00:05]} d5 {[%clk
01:31:16]} {[%emt 00:00:19]} 4. Bg2 {[%clk 01:32:04]} {[%emt 00:00:15]} Be7
{[%clk 01:31:06]} {[%emt 00:00:40]} 5. Nf3 {[%clk 01:32:26]} {[%emt 00:00:08]}
O-O {[%clk 01:31:09]} {[%emt 00:00:27]} 6. O-O {[%clk 01:32:40]} {[%emt
00:00:16]} dxc4 {[%clk 01:31:16]} {[%emt 00:00:31]} 7. Qc2 {[%clk 01:27:49]}
{[%emt 00:05:13]} a6 {[%clk 01:28:33]} {[%emt 00:03:13]} 8. a4 {[%clk
01:24:23]} {[%emt 00:03:56]} Bd7 {[%clk 01:27:03]} {[%emt 00:02:00]} 9. Qxc4
{[%clk 01:19:12]} {[%emt 00:05:44]} Bc6 {[%clk 01:27:00]} {[%emt 00:02:09]} 10.
Bf4 {[%clk 01:15:46]} {[%emt 00:02:19]} Bd6 {[%clk 01:25:21]} {[%emt 00:02:08]}
11. Bg5 {[%clk 01:09:54]} {[%emt 00:06:26]} Nbd7 {[%clk 01:21:31]} {[%emt
00:04:18]} 12. Nc3 {[%clk 01:02:36]} {[%emt 00:07:51]} h6 {[%clk 01:21:06]}
{[%emt 00:00:57]} 13. Bxf6 {[%clk 01:03:03]} Nxf6 {[%clk 01:21:30]} {[%emt
00:00:22]} 14. Qd3 {[%clk 01:03:23]} Bb4 {[%clk 01:12:16]} {[%emt 00:09:42]} 15.
Rfc1 {[%clk 00:53:46]} {[%emt 00:10:12]} Qe7 {[%clk 01:00:55]} {[%emt
00:11:43]} 16. e3 {[%clk 00:54:11]} {[%emt 00:00:04]} Rfd8 {[%clk 01:00:09]}
{[%emt 00:01:15]} 17. Qc2 {[%clk 00:54:36]} {[%emt 00:00:24]} Rac8 {[%clk
00:54:25]} {[%emt 00:06:02]} 18. a5 {[%clk 00:46:11]} {[%emt 00:08:47]} Bxc3
{[%clk 00:44:59]} {[%emt 00:09:56]} 19. Qxc3 {[%clk 00:43:18]} {[%emt
00:03:24]} Bd5 {[%clk 00:42:57]} {[%emt 00:02:31]} 20. Qa3 {[%clk 00:40:48]}
{[%emt 00:03:02]} Qxa3 {[%clk 00:36:50]} {[%emt 00:06:38]} 21. Rxa3 {[%clk
00:41:13]} {[%emt 00:00:05]} Nd7 {[%clk 00:35:04]} {[%emt 00:02:13]} 22. Rac3
{[%clk 00:41:06]} {[%emt 00:00:37]} c6 {[%clk 00:35:08]} {[%emt 00:00:29]} 23.
Nd2 {[%clk 00:40:52]} {[%emt 00:00:42]} Bxg2 {[%clk 00:35:26]} {[%emt
00:00:11]} 24. Kxg2 {[%clk 00:41:21]} {[%emt 00:00:05]} Nf6 {[%clk 00:31:41]}
{[%emt 00:04:11]} 25. Nb3 {[%clk 00:38:08]} {[%emt 00:03:52]} Ne4 {[%clk
00:30:42]} {[%emt 00:01:20]} 26. Rc4 {[%clk 00:38:07]} {[%emt 00:00:46]} Rd5
{[%clk 00:29:06]} {[%emt 00:01:56]} 27. Nc5 {[%clk 00:36:46]} {[%emt 00:01:47]}
Nxc5 {[%clk 00:29:16]} {[%emt 00:00:19]} 28. Rxc5 {[%clk 00:37:12]} {[%emt
00:00:06]} Rcd8 {[%clk 00:28:00]} {[%emt 00:01:43]} 29. h4 {[%clk 00:37:03]}
{[%emt 00:00:40]} f6 {[%clk 00:26:31]} {[%emt 00:01:58]} 30. Kf3 {[%clk
00:36:54]} {[%emt 00:00:40]} Kf7 {[%clk 00:26:18]} {[%emt 00:00:47]} 31. b4
{[%clk 00:34:37]} {[%emt 00:02:42]} e5 {[%clk 00:23:54]} {[%emt 00:02:54]} 32.
dxe5 {[%clk 00:34:19]} {[%emt 00:00:55]} Rxe5 {[%clk 00:19:17]} {[%emt
00:05:04]} 33. Rxe5 {[%clk 00:34:00]} {[%emt 00:00:45]} fxe5 {[%clk 00:19:45]}
{[%emt 00:00:25]} 34. Rc5 {[%clk 00:33:30]} {[%emt 00:00:37]} Kf6 {[%clk
00:19:09]} {[%emt 00:01:09]} 35. Ke2 {[%clk 00:32:22]} {[%emt 00:01:33]} g5
{[%clk 00:17:44]} {[%emt 00:02:01]} 36. Rc4 {[%clk 00:28:39]} {[%emt 00:04:08]}
Kf5 {[%clk 00:15:53]} {[%emt 00:02:22]} 37. hxg5 {[%clk 00:26:16]} {[%emt
00:02:56]} hxg5 {[%clk 00:16:16]} {[%emt 00:00:04]} 38. g4+ {[%clk 00:26:44]}
{[%emt 00:00:05]} Ke6 {[%clk 00:13:49]} {[%emt 00:02:57]} 39. f4 {[%clk
00:27:07]} {[%emt 00:00:05]} gxf4 {[%clk 00:14:13]} {[%emt 00:00:05]} 40. exf4
{[%clk 00:27:35]} {[%emt 00:00:04]} exf4 {[%clk 00:14:27]} {[%emt 00:00:13]} 41.
Rxf4 {[%clk 00:27:57]} {[%emt 00:00:08]} Rd5 {[%clk 00:14:49]} {[%emt
00:00:07]} 42. Re4+ {[%clk 00:27:16]} {[%emt 00:01:12]} Kf6 {[%clk 00:14:34]}
{[%emt 00:00:46]} 43. Ke3 {[%clk 00:27:20]} {[%emt 00:00:29]} c5 {[%clk
00:14:38]} {[%emt 00:00:23]} 44. bxc5 {[%clk 00:27:12]} {[%emt 00:00:47]} Rxc5
{[%clk 00:15:04]} 45. Rb4 {[%clk 00:27:36]} {[%emt 00:00:05]} Ke5 {[%emt
00:00:37]} 46. Ke4+ 1/2-1/2

[Event "6. Internationales Spandauer Weihnachtsopen 2023"]
[Site "Spandau, Germany"]
[Date "2023.12.30"]
[Round "7.3"]
[White "Perestjuk, Marko"]
[Black "Daniel, Damian"]
[Result "0-1"]
[TimeControl "90 min+30 sec"]
[WhiteElo "2171"]
[BlackElo "2129"]

1. c4 {[%clk 01:30:56]} {[%emt 00:00:06]} e5 {[%clk 01:28:58]} {[%emt
00:02:02]} 2. Nc3 {[%clk 01:31:05]} {[%emt 00:00:33]} Nf6 {[%clk 01:28:00]}
{[%emt 00:01:14]} 3. Nf3 {[%clk 01:31:15]} {[%emt 00:00:20]} Nc6 {[%clk
01:26:30]} {[%emt 00:01:59]} 4. e3 {[%clk 01:31:18]} {[%emt 00:00:32]} Bb4
{[%clk 01:23:02]} {[%emt 00:03:54]} 5. Qc2 {[%clk 01:31:07]} {[%emt 00:00:41]}
Bxc3 {[%clk 01:22:17]} {[%emt 00:01:19]} 6. Qxc3 {[%clk 01:30:29]} {[%emt
00:01:04]} Qe7 {[%clk 01:22:32]} {[%emt 00:00:14]} 7. d4 {[%clk 01:29:22]}
{[%emt 00:01:43]} Ne4 {[%clk 01:16:57]} {[%emt 00:06:04]} 8. Qd3 {[%clk
01:29:01]} {[%emt 00:00:50]} exd4 {[%clk 01:14:12]} {[%emt 00:03:17]} 9. Nxd4
{[%clk 01:28:51]} {[%emt 00:00:42]} O-O {[%clk 01:07:30]} {[%emt 00:07:09]} 10.
Be2 {[%clk 01:27:34]} {[%emt 00:01:51]} Qb4+ {[%clk 01:00:45]} {[%emt
00:07:10]} 11. Kf1 {[%clk 01:27:49]} {[%emt 00:00:15]} Nxd4 {[%clk 00:50:20]}
{[%emt 00:10:59]} 12. Qxd4 {[%clk 01:24:42]} {[%emt 00:03:36]} Re8 {[%clk
00:48:59]} {[%emt 00:01:48]} 13. f3 {[%clk 01:21:24]} {[%emt 00:03:48]} Nf6
{[%clk 00:37:47]} {[%emt 00:11:43]} 14. g4 {[%clk 01:09:59]} {[%emt 00:11:55]}
d6 {[%clk 00:26:58]} {[%emt 00:11:19]} 15. Bd2 {[%clk 01:08:30]} {[%emt
00:01:59]} Qb6 {[%clk 00:26:28]} {[%emt 00:01:14]} 16. Qc3 {[%clk 00:52:01]}
{[%emt 00:16:46]} Bxg4 {[%clk 00:26:26]} {[%emt 00:00:35]} 17. fxg4 {[%clk
00:42:08]} {[%emt 00:10:20]} Ne4 {[%clk 00:26:44]} {[%emt 00:00:10]} 18. Qc2
{[%clk 00:41:48]} {[%emt 00:00:50]} Nxd2+ {[%clk 00:26:58]} {[%emt 00:00:17]}
19. Qxd2 {[%clk 00:42:13]} {[%emt 00:00:11]} Rxe3 {[%clk 00:27:23]} 20. Rg1
{[%clk 00:38:13]} {[%emt 00:04:34]} Rae8 {[%clk 00:26:41]} {[%emt 00:01:07]} 21.
Rg2 {[%clk 00:37:05]} {[%emt 00:01:47]} R8e5 {[%clk 00:21:59]} {[%emt
00:05:11]} 22. Rd1 {[%clk 00:33:35]} {[%emt 00:03:51]} Qc6 {[%clk 00:21:24]}
{[%emt 00:01:05]} 23. Kg1 {[%clk 00:30:15]} {[%emt 00:03:54]} Qxg2+ {[%clk
00:21:03]} {[%emt 00:00:48]} 24. Kxg2 {[%clk 00:30:32]} {[%emt 00:00:17]} Rxe2+
{[%clk 00:21:29]} 25. Kf3 {[%clk 00:29:59]} {[%emt 00:01:04]} Rxd2 {[%clk
00:21:52]} {[%emt 00:00:06]} 26. Rxd2 {[%clk 00:30:16]} {[%emt 00:00:13]} Kf8
{[%clk 00:20:29]} {[%emt 00:02:08]} 27. Kf4 {[%clk 00:25:06]} {[%emt 00:05:24]}
h6 {[%clk 00:19:29]} {[%emt 00:01:43]} 28. h4 {[%clk 00:24:52]} {[%emt
00:00:37]} g5+ {[%clk 00:17:29]} {[%emt 00:02:46]} 29. hxg5 {[%clk 00:25:10]}
hxg5+ {[%clk 00:17:58]} 30. Kf3 {[%clk 00:25:29]} {[%emt 00:00:05]} Kg7 {[%clk
00:15:06]} {[%emt 00:03:22]} 31. b3 {[%clk 00:24:14]} {[%emt 00:01:42]} a5
{[%clk 00:13:13]} {[%emt 00:02:27]} 32. Rd1 {[%clk 00:22:35]} {[%emt 00:02:20]}
b6 {[%clk 00:12:11]} {[%emt 00:01:17]} 33. a3 {[%clk 00:21:40]} {[%emt
00:01:24]} Kg6 {[%clk 00:06:02]} {[%emt 00:06:39]} 34. Rh1 {[%clk 00:19:47]}
{[%emt 00:02:23]} f5 {[%clk 00:05:36]} {[%emt 00:00:56]} 35. gxf5+ {[%clk
00:19:34]} {[%emt 00:00:45]} Rxf5+ {[%clk 00:05:46]} {[%emt 00:00:19]} 36. Kg3
{[%clk 00:19:37]} {[%emt 00:00:27]} Re5 {[%clk 00:02:44]} {[%emt 00:03:39]} 37.
Kf3 {[%clk 00:19:17]} {[%emt 00:00:51]} Re7 {[%clk 00:02:44]} {[%emt 00:00:33]}
38. Rh8 {[%clk 00:18:45]} {[%emt 00:00:55]} Kf5 {[%clk 00:02:31]} {[%emt
00:00:39]} 39. Rg8 {[%clk 00:16:53]} {[%emt 00:02:27]} Rh7 {[%clk 00:02:12]}
{[%emt 00:00:43]} 40. Kg3 {[%clk 00:15:17]} {[%emt 00:02:05]} Rf7 {[%clk
00:01:42]} {[%emt 00:05:38]} 41. b4 {[%clk 00:13:54]} {[%emt 00:02:59]} axb4
{[%clk 00:01:28]} 42. axb4 {[%clk 00:14:19]} Rh7 {[%clk 00:01:32]} 43. Rc8
{[%clk 00:02:55]} {[%emt 00:07:41]} Ke4 {[%clk 00:01:34]} {[%emt 00:00:11]} 44.
Rg8 {[%clk 00:03:03]} {[%emt 00:00:22]} Kd4 {[%clk 00:01:38]} {[%emt 00:00:25]}
45. c5 {[%clk 00:03:28]} {[%emt 00:00:07]} dxc5 {[%clk 00:01:46]} {[%emt
00:00:22]} 46. bxc5 {[%clk 00:03:47]} {[%emt 00:00:11]} Kxc5 {[%clk 00:02:00]}
{[%emt 00:00:16]} 47. Rxg5+ {[%clk 00:04:09]} {[%emt 00:00:08]} Kb4 {[%clk
00:02:04]} {[%emt 00:00:26]} 48. Kf2 {[%clk 00:03:59]} {[%emt 00:00:44]} Re7
{[%clk 00:02:16]} {[%emt 00:00:23]} 49. Rg6 {[%clk 00:03:52]} {[%emt 00:00:31]}
Kb5 {[%clk 00:02:22]} {[%emt 00:00:21]} 0-1